bitfinex-derivatives/quotes_SOLF0:USTF0_20220106
["timestamp","ask_amount","ask_price","bid_price","bid_amount"]
[1641490202248,4.6048435,152.07,152.06,6.11203948]
[1641490202750,5.23648239,152.07,152.06,1.46926411]
[1641490202948,0.63163889,152.07,152.06,1.46926411]
[1641490203548,5.23648239,152.07,152.06,1.46926411]
[1641490203949,5.23648239,152.07,152.03,41.60076279]
[1641490204148,0.63163889,152.06,152.03,41.60076279]
[1641490204348,0.63163889,152.04,152.03,41.60076279]
[1641490204550,0.63163889,152.04,152.01,27.66479]
[1641490204748,5.704,152.07,152.02,13.92923767]
[1641490204947,4.63163889,152.03,151.98,37.15597106]
[1641490205149,4.0,152.02,151.98,37.15597106]
[1641490205348,28.29642889,151.99,151.98,37.15597106]
[1641490205748,28.29642889,151.99,151.94,7.00872605]
[1641490206148,0.63163889,151.97,151.94,7.00872605]
[1641490206747,27.66479,151.99,151.94,7.00872605]
[1641490206949,4.64464591,152.01,151.94,10.37708716]
[1641490207150,4.64464591,152.01,151.94,11.46172605]
[1641490207351,4.64464591,152.0,151.96,3.36836111]
[1641490207549,4.591e-05,152.0,151.96,3.36836111]
[1641490207749,4.591e-05,152.0,151.97,3.36836111]
[1641490207951,4.591e-05,152.0,151.96,66.8469]
[1641490208152,4.591e-05,152.0,151.96,70.21526111]
[1641490208652,27.66479,152.09,151.97,58.90168544]
[1641490208853,0.63163889,152.07,151.97,55.53332433]
[1641490209054,0.63163889,152.07,151.97,59.24956131]
[1641490209253,0.63163889,152.07,151.99,3.36836111]
[1641490209453,0.63163889,152.07,152.0,27.66479]
[1641490209653,27.66479,152.09,152.0,27.66479]
[1641490209853,0.63163889,152.06,152.0,27.66479]
[1641490210054,27.66479,152.09,152.0,95.23329]
[1641490210354,0.63163889,152.08,152.01,7.00872605]
[1641490210955,27.66479,152.09,152.01,7.00872605]
[1641490211355,0.63163889,152.07,152.01,7.00872605]
[1641490211954,0.63163889,152.07,152.01,10.72496303]
[1641490212354,66.7088,152.1,152.01,10.72496303]
[1641490212554,0.63163889,152.08,152.01,16.76996303]
[1641490212755,66.7088,152.1,152.01,16.76996303]
[1641490212955,0.63163889,152.08,152.01,16.76996303]
[1641490213157,66.7088,152.1,152.01,16.76996303]
[1641490213358,27.66479,152.08,152.01,16.76996303]
[1641490213556,0.63163889,152.06,152.01,16.76996303]
[1641490214160,27.66479,152.08,152.01,16.76996303]
[1641490214860,27.66479,152.08,152.01,13.05372605]
[1641490215461,0.63163889,152.03,152.01,7.00872605]
[1641490216265,0.63163889,152.06,152.01,7.00872605]
[1641490216466,0.63163889,152.06,152.01,13.63272605]
[1641490217164,70.7088,152.1,152.01,13.63272605]
[1641490217363,0.63163889,152.06,152.01,41.29751605]
[1641490218065,0.63163889,152.06,152.01,34.28879]
[1641490220970,0.63163889,152.06,152.02,6.99126792]
[1641490222870,4.0,152.08,152.02,6.99126792]
[1641490223070,4.0,152.09,152.02,6.99126792]
[1641490223271,0.63163889,152.03,152.02,6.99126792]
[1641490224371,0.63163889,152.03,151.98,6.99126792]
[1641490224572,0.63163889,152.03,151.98,10.70640907]
[1641490224972,98.96979,152.06,151.98,10.70640907]
[1641490225572,94.96979,152.06,151.98,10.70640907]
[1641490226273,0.63163889,152.01,151.98,10.70640907]
[1641490226474,4.0,152.05,151.98,10.70640907]
[1641490226675,0.63163889,152.0,151.98,10.70640907]
[1641490226975,4.0,152.05,151.98,10.70640907]
[1641490226976,4.445,152.04,151.98,10.70640907]
[1641490227175,0.63163889,151.99,151.98,6.99126792]
[1641490227975,0.63163889,151.99,151.95,6.99126792]
[1641490228375,0.63163889,151.98,151.95,6.99126792]
[1641490228676,0.63163889,151.97,151.95,6.99126792]
[1641490228878,0.63163889,151.96,151.95,6.99126792]
[1641490229278,0.63163889,151.96,151.94,40.87111221]
[1641490229481,28.29642889,151.95,151.94,37.15597106]
[1641490229878,28.29642889,151.95,151.91,37.15597106]
[1641490230077,20.23169764,151.95,151.91,37.15597106]
[1641490230479,0.63163889,151.93,151.91,37.15597106]
[1641490230679,0.63163889,151.93,151.88,103.16747106]
[1641490231479,0.63163889,151.93,151.88,66.0115]
[1641490232879,20.23169764,151.95,151.88,66.0115]
[1641490233079,0.63163889,151.89,151.87,3.71737996]
[1641490233280,4.0,151.91,151.78,6.57894737]
[1641490233479,4.0,151.91,151.78,27.66479]
[1641490233480,0.63163889,151.85,151.78,27.66479]
[1641490234282,93.54389,151.89,151.78,27.66479]
[1641490234684,0.63163889,151.83,151.78,27.66479]
[1641490234882,65.8791,151.89,151.76,129.2421]
[1641490235083,0.63163889,151.82,151.76,129.2421]
[1641490235284,0.63163889,151.82,151.76,66.2636]
[1641490235486,0.63163889,151.81,151.77,27.66479]
[1641490236287,0.63163889,151.82,151.76,80.01231287]
[1641490236887,0.63163889,151.82,151.74,47.994182]
[1641490237087,27.66479,151.86,151.74,47.994182]
[1641490237289,4.0,151.82,151.74,13.74871287]
[1641490237487,27.66479,151.81,151.74,13.74871287]
[1641490237887,0.63163889,151.78,151.74,13.74871287]
[1641490238088,0.63163889,151.75,151.72,106.19350287]
[1641490238288,4.0,151.77,151.72,41.41350287]
[1641490238491,7.099,151.78,151.72,13.74871287]
[1641490238888,0.63163889,151.75,151.72,13.74871287]
[1641490239090,4.0,151.8,151.71,13.74871287]
[1641490239490,27.66479,151.75,151.71,13.74871287]
[1641490239794,0.63163889,151.73,151.71,13.74871287]
[1641490239991,27.66479,151.75,151.71,13.74871287]
[1641490240192,27.66479,151.75,151.7,13.74871287]
[1641490240391,0.63163889,151.73,151.7,13.74871287]
[1641490240795,0.63163889,151.71,151.7,13.74871287]
[1641490240992,8.0,151.71,151.67,47.89710507]
[1641490241192,8.0,151.68,151.58,93.84523458]
[1641490241392,4.0,151.63,151.58,93.84523458]
[1641490241592,35.66479,151.59,151.58,93.84523458]
[1641490241792,37.47479,151.59,151.58,18.94233965]
[1641490241992,44.06653055,151.59,151.58,16.66233965]
[1641490242193,48.06653055,151.59,151.53,117.25845782]
[1641490242396,6.59652363,151.54,151.41,91.81059375]
[1641490242593,4.0,151.53,151.41,91.81059375]
[1641490242793,6.59652363,151.54,151.41,91.81059375]
[1641490242994,10.59652363,151.54,151.41,91.81059375]
[1641490243193,6.59652363,151.54,151.39,20.0]
[1641490243594,34.26131363,151.54,151.44,27.66479]
[1641490244093,4.0,151.53,151.44,27.66479]
[1641490244294,4.0,151.5,151.45,1.42775616]
[1641490244494,6.5969588,151.47,151.45,1.42775616]
[1641490244694,6.59565346,151.5,151.45,1.42775616]
[1641490245293,6.59565346,151.5,151.38,1.42775616]
[1641490245794,6.59565346,151.5,151.44,27.66479]
[1641490245994,27.66479,151.59,151.44,47.66479]
[1641490246194,27.66479,151.59,151.44,27.66479]
[1641490246394,4.0,151.58,151.44,27.66479]
[1641490246796,4.0,151.56,151.44,27.66479]
[1641490246996,10.592827,151.58,151.45,1.42775616]
[1641490247195,6.592827,151.58,151.45,1.42775616]
[1641490247597,6.592827,151.58,151.49,27.66479]
[1641490247994,10.592827,151.58,151.49,27.66479]
[1641490248196,10.59369643,151.56,151.49,27.66479]
[1641490248695,6.59369643,151.56,151.5,1.42775616]
[1641490248895,27.66479,151.6,151.5,1.42775616]
[1641490249095,34.25653055,151.6,151.5,1.42775616]
[1641490249496,6.59000297,151.64,151.5,1.42775616]
[1641490249696,6.59000297,151.64,151.55,27.66479]
[1641490250099,10.59000297,151.64,151.55,27.66479]
[1641490250296,10.59000297,151.64,151.56,8.39495212]
[1641490250498,6.59000297,151.64,151.56,8.39495212]
[1641490250897,27.66479,151.65,151.56,8.39495212]
[1641490251699,4.0,151.62,151.56,8.39495212]
[1641490252097,6.59022011,151.64,151.56,8.39495212]
[1641490252698,10.59022011,151.64,151.56,8.39495212]
[1641490252896,6.59022011,151.64,151.56,8.39495212]
[1641490253297,4.0,151.62,151.56,8.39495212]
[1641490253697,6.59022011,151.64,151.56,8.39495212]
[1641490253897,27.66479,151.65,151.56,8.39495212]
[1641490254097,38.25370744,151.67,151.56,8.39495212]
[1641490254398,34.25370744,151.67,151.56,8.39495212]
[1641490255201,4.0,151.66,151.56,8.39495212]
[1641490255800,4.0,151.66,151.56,64.26344313]
[1641490256502,4.0,151.66,151.56,19.7246715]
[1641490256901,34.25370744,151.67,151.56,19.7246715]
[1641490257101,6.58891744,151.67,151.56,19.7246715]
[1641490257502,10.58891744,151.67,151.56,19.7246715]
[1641490257703,6.58891744,151.67,151.59,27.66479]
[1641490257903,6.58891744,151.67,151.59,33.94779]
[1641490259205,10.58891744,151.67,151.59,27.66479]
[1641490260209,6.58891744,151.67,151.59,27.66479]
[1641490260407,27.66479,151.7,151.59,27.66479]
[1641490261511,31.66479,151.7,151.59,27.66479]
[1641490261708,4.0,151.65,151.62,37.23551769]
[1641490261910,12.6872663,151.68,151.62,37.23551769]
[1641490262311,4.0,151.67,151.62,37.23551769]
[1641490262812,4.0,151.67,151.6,8.41595878]
[1641490262813,7.20666099,151.67,151.6,8.41595878]
[1641490263611,4.0,151.67,151.6,8.41595878]
[1641490263812,4.0,151.67,151.61,37.23551769]
[1641490264313,27.66479,151.7,151.61,37.23551769]
[1641490264812,4.0,151.67,151.61,37.23551769]
[1641490265421,4.0,151.65,151.61,37.23551769]
[1641490265614,5.588,151.68,151.61,37.23551769]
[1641490265814,27.66479,151.67,151.61,37.23551769]
[1641490266014,4.0,151.65,151.61,37.23551769]
[1641490266215,27.66479,151.67,151.6,8.41595878]
[1641490266714,4.0,151.64,151.6,8.41595878]
[1641490267014,4.0,151.64,151.59,37.23551769]
[1641490267216,27.66479,151.67,151.59,37.23551769]
[1641490267415,4.0,151.65,151.59,37.23551769]
[1641490267815,32.32014425,151.67,151.59,37.23551769]
[1641490268016,36.32014425,151.67,151.59,37.23551769]
[1641490268218,32.32014425,151.67,151.59,37.23551769]
[1641490268418,4.0,151.6,151.59,37.23551769]
[1641490268818,4.0,151.6,151.56,19.7446175]
[1641490269016,6.67,151.65,151.56,19.7446175]
[1641490269217,4.0,151.57,151.56,19.7446175]
[1641490269418,4.0,151.6,151.56,19.7446175]
[1641490269619,6.59065445,151.63,151.56,19.7446175]
[1641490269818,27.66479,151.6,151.56,18.29561778]
[1641490270019,27.66479,151.6,151.54,19.7446175]
[1641490270318,4.0,151.56,151.54,19.7446175]
[1641490270719,27.66479,151.6,151.54,19.7446175]
[1641490270921,4.0,151.58,151.54,19.7446175]
[1641490271122,4.0,151.57,151.54,19.7446175]
[1641490271322,4.0,151.56,151.54,19.7446175]
[1641490271520,4.0,151.55,151.54,19.7446175]
[1641490271722,4.0,151.55,151.54,18.29561778]
[1641490271921,4.0,151.55,151.51,8.41595878]
[1641490272122,27.66479,151.6,151.51,8.41595878]
[1641490272521,6.59217509,151.59,151.51,8.41595878]
[1641490272720,4.0,151.56,151.51,8.41595878]
[1641490273124,6.59217509,151.59,151.51,8.41595878]
[1641490273322,4.0,151.52,151.51,8.41595878]
[1641490273522,4.0,151.55,151.51,8.41595878]
[1641490274523,4.0,151.55,151.5,19.7446175]
[1641490275125,6.59304434,151.57,151.5,19.7446175]
[1641490275323,4.0,151.54,151.5,19.7446175]
[1641490276424,6.59304434,151.57,151.5,19.7446175]
[1641490277227,10.59304434,151.57,151.56,13.97314556]
[1641490277428,10.59304434,151.57,151.56,6.67548521]
[1641490278229,10.59304434,151.57,151.5,19.7446175]
[1641490278433,4.0,151.55,151.5,19.7446175]
[1641490278830,6.59304434,151.57,151.5,19.7446175]
[1641490279030,4.0,151.55,151.5,19.7446175]
[1641490279230,6.59304434,151.57,151.5,19.7446175]
[1641490279530,4.0,151.55,151.5,19.7446175]
[1641490279731,6.59304434,151.57,151.5,19.7446175]
[1641490280030,4.0,151.54,151.5,19.7446175]
[1641490281532,34.25783434,151.57,151.5,19.7446175]
[1641490282434,4.0,151.54,151.5,19.7446175]
[1641490282631,34.25783434,151.57,151.5,19.7446175]
[1641490283133,4.0,151.54,151.5,19.7446175]
[1641490283337,34.25783434,151.57,151.5,19.7446175]
[1641490283534,4.0,151.53,151.5,19.7446175]
[1641490283733,4.0,151.55,151.5,19.7446175]
[1641490283935,4.0,151.51,151.5,19.7446175]
[1641490285238,4.0,151.51,151.46,55.86849101]
[1641490285937,4.0,151.52,151.46,55.86849101]
[1641490286139,6.59456608,151.54,151.46,55.86849101]
[1641490286140,4.0,151.5,151.46,55.86849101]
[1641490286338,4.0,151.47,151.46,55.86849101]
[1641490286738,4.0,151.47,151.46,19.7446175]
[1641490287137,14.1,151.47,151.46,19.7446175]
[1641490287538,14.1,151.47,151.46,1.75e-05]
[1641490287739,10.1,151.47,151.41,1.75e-05]
[1641490287939,4.0,151.46,151.41,1.75e-05]
[1641490288545,4.0,151.43,151.41,1.75e-05]
[1641490288743,5.882,151.46,151.41,1.75e-05]
[1641490288940,4.0,151.44,151.41,1.75e-05]
[1641490289141,5.882,151.46,151.41,1.75e-05]
[1641490289340,4.0,151.43,151.41,1.75e-05]
[1641490289542,4.0,151.42,151.41,1.75e-05]
[1641490289741,9.743,151.42,151.41,1.75e-05]
[1641490290142,9.743,151.42,151.38,27.66479]
[1641490290642,4.81092783,151.42,151.38,27.66479]
[1641490290841,27.66479,151.45,151.38,27.66479]
[1641490293146,27.66479,151.45,151.38,31.66479]
[1641490293346,27.66479,151.45,151.38,27.66479]
[1641490294147,6.59804698,151.46,151.38,27.66479]
[1641490295751,27.66479,151.48,151.39,4.0]
[1641490296354,6.59630607,151.5,151.39,4.0]
[1641490296553,6.59630607,151.5,151.42,27.66479]
[1641490296752,27.66479,151.51,151.42,27.66479]
[1641490296953,38.92034524,151.54,151.42,27.66479]
[1641490297154,38.92034524,151.54,151.43,63.8707]
[1641490297355,6.59500099,151.53,151.43,63.8707]
[1641490297958,6.59500099,151.53,151.46,4.0]
[1641490298158,6.59500099,151.53,151.43,67.59942735]
[1641490298357,10.59500099,151.53,151.43,67.59942735]
[1641490298558,27.66479,151.51,151.43,67.59942735]
[1641490298759,27.66479,151.51,151.43,83.41533655]
[1641490299362,27.66479,151.51,151.43,79.6866092]
[1641490299564,27.66479,151.51,151.47,37.28105869]
[1641490299761,6.59500099,151.53,151.47,37.28105869]
[1641490300365,6.59500099,151.53,151.49,37.28105869]
[1641490301064,6.59500099,151.53,151.44,3.72789675]
[1641490301065,6.59500099,151.53,151.48,37.28105869]
[1641490302767,4.6612066,151.56,151.49,37.28105869]
[1641490302968,4.6612066,151.56,151.49,41.97505869]
[1641490303167,4.6612066,151.56,151.51,4.0]
[1641490303367,4.6612066,151.56,151.49,37.28105869]
[1641490303569,6.59326169,151.57,151.51,37.28105869]
[1641490305769,10.59326169,151.57,151.51,37.28105869]
[1641490306170,6.59326169,151.57,151.51,37.28105869]
[1641490306570,34.25805169,151.57,151.51,37.28105869]
[1641490307171,38.25805169,151.57,151.51,37.28105869]
[1641490307372,34.25805169,151.57,151.51,37.28105869]
[1641490308678,4.0,151.55,151.51,37.28105869]
[1641490308878,11.177,151.55,151.52,37.28105869]
[1641490309077,7.177,151.55,151.52,37.28105869]
[1641490309577,11.177,151.55,151.52,37.28105869]
[1641490309777,7.177,151.55,151.52,37.28105869]
[1641490309977,7.177,151.55,151.51,37.28105869]
[1641490310178,34.25805169,151.57,151.51,37.28105869]
[1641490311580,38.25805169,151.57,151.52,37.28105869]
[1641490311780,34.25805169,151.57,151.52,37.28105869]
[1641490313282,6.59326169,151.57,151.52,37.28105869]
[1641490313683,4.6612066,151.6,151.54,4.0]
[1641490313882,4.6612066,151.6,151.52,37.28105869]
[1641490314082,6.5915233,151.61,151.55,37.28105869]
[1641490314783,6.5915233,151.61,151.55,64.94584869]
[1641490314983,6.5915233,151.61,151.55,68.94584869]
[1641490315185,6.5915233,151.61,151.55,64.94584869]
[1641490315384,6.5915233,151.61,151.56,37.28105869]
[1641490315584,4.6612066,151.63,151.56,37.28105869]
[1641490316385,4.6612066,151.65,151.57,37.28105869]
[1641490316584,4.6612066,151.65,151.57,100.66835869]
[1641490316786,4.6612066,151.65,151.59,27.66479]
[1641490317686,11.25055821,151.66,151.59,64.94584869]
[1641490318687,6.58935161,151.66,151.6,44.24329768]
[1641490321888,6.58935161,151.66,151.61,37.28105869]
[1641490322690,6.58935161,151.66,151.6,44.24329768]
[1641490323092,4.6612066,151.67,151.6,44.24329768]
[1641490323492,4.6612066,151.66,151.6,44.24329768]
[1641490323694,4.6612066,151.66,151.6,6.96223899]
[1641490324593,4.6612066,151.67,151.63,13.96834065]
[1641490324993,27.66479,151.65,151.63,13.96834065]
[1641490325494,27.66479,151.65,151.57,67.3873]
[1641490326194,27.66479,151.65,151.59,4.0]
[1641490326393,27.66479,151.65,151.57,63.3873]
[1641490326394,27.66479,151.68,151.61,4.0]
[1641490326793,27.66479,151.68,151.57,67.97098091]
[1641490326794,27.66479,151.68,151.6,4.0]
[1641490326995,27.66479,151.68,151.59,31.66479]
[1641490327298,34.25153746,151.72,151.6,4.0]
[1641490327995,38.25153746,151.72,151.6,4.0]
[1641490328597,38.25153746,151.72,151.61,4.0]
[1641490328796,38.25153746,151.72,151.62,64.2661]
[1641490328997,61.91632746,151.72,151.62,64.2661]
[1641490329802,34.25153746,151.72,151.62,64.2661]
[1641490330001,13.97702146,151.82,151.71,4.0]
[1641490330201,13.97702146,151.82,151.78,4.0]
[1641490330401,55.86849101,151.8,151.72,20.0]
[1641490330803,55.86849101,151.8,151.75,4.0]
[1641490331003,55.86849101,151.8,151.79,55.32958]
[1641490331404,6.58067913,151.87,151.79,55.32958]
[1641490331603,6.58067913,151.87,151.79,60.54558]
[1641490332504,6.58067913,151.87,151.8,8.40857913]
[1641490333004,11.64441725,151.89,151.86,55.32958]
[1641490333404,6.57851457,151.92,151.86,55.32958]
[1641490333905,4.0,151.96,151.86,55.32958]
[1641490334107,6.57743283,151.94,151.86,55.32958]
[1641490334307,18.20827157,151.94,151.87,1.44684475]
[1641490335108,4.0,151.88,151.87,1.44684475]
[1641490335307,4.0,151.89,151.87,1.44684475]
[1641490335506,4.0,151.88,151.87,1.44684475]
[1641490335707,4.0,151.88,151.8,37.28105869]
[1641490335907,4.0,151.85,151.8,37.28105869]
[1641490336408,6.58089566,151.88,151.77,37.28105869]
[1641490336810,4.0,151.86,151.77,37.28105869]
[1641490337008,4.0,151.85,151.77,37.28105869]
[1641490337208,4.0,151.86,151.8,27.66479]
[1641490337409,4.0,151.84,151.8,27.66479]
[1641490338008,4.0,151.86,151.8,27.66479]
[1641490339107,4.0,151.81,151.74,103.01565869]
[1641490339308,4.0,151.8,151.74,65.7346]
[1641490339508,4.0,151.77,151.73,37.28105869]
[1641490339709,6.58479571,151.77,151.73,37.28105869]
[1641490340110,4.0,151.76,151.7,37.28105869]
[1641490340310,11.038,151.76,151.7,37.28105869]
[1641490340510,7.038,151.76,151.7,37.28105869]
[1641490341508,7.038,151.76,151.68,64.94584869]
[1641490341910,10.58479571,151.77,151.68,64.94584869]
[1641490342511,10.58479571,151.77,151.69,6.96605471]
[1641490342713,4.0,151.74,151.69,6.96605471]
[1641490342911,4.0,151.71,151.69,6.96605471]
[1641490343312,4.0,151.7,151.69,6.96605471]
[1641490343511,9.639,151.7,151.68,37.28105869]
[1641490343711,4.0,151.69,151.68,37.28105869]
[1641490344614,4.0,151.69,151.61,32.61875869]
[1641490344814,4.0,151.65,151.61,32.61875869]
[1641490345014,10.59000297,151.65,151.61,32.61875869]
[1641490345315,4.0,151.64,151.61,23.41875869]
[1641490345513,4.0,151.63,151.61,23.41875869]
[1641490345715,10.59000297,151.65,151.61,23.41875869]
[1641490345914,6.59000297,151.65,151.61,23.41875869]
[1641490346317,6.59000297,151.65,151.57,11.32607936]
[1641490346515,4.0,151.67,151.57,11.32607936]
[1641490347519,4.0,151.67,151.57,16.35907936]
[1641490347919,4.0,151.66,151.57,16.35907936]
[1641490349522,4.0,151.66,151.57,11.32607936]
[1641490349718,4.0,151.63,151.57,11.32607936]
[1641490351020,27.66479,151.67,151.57,11.32607936]
[1641490351721,47.66479,151.67,151.57,11.32607936]
[1641490351921,6.59043728,151.65,151.57,11.32607936]
[1641490352121,6.59043728,151.65,151.56,27.66479]
[1641490352322,20.0,151.64,151.56,27.66479]
[1641490352820,6.59043728,151.65,151.56,27.66479]
[1641490353223,27.66479,151.62,151.56,27.66479]
[1641490357424,34.25653055,151.62,151.56,27.66479]
[1641490358725,27.66479,151.62,151.56,27.66479]
[1641490358927,6.59260968,151.6,151.56,27.66479]
[1641490359127,6.59108885,151.63,151.56,27.66479]
[1641490359327,6.59108885,151.63,151.56,32.08979]
[1641490360527,6.59108885,151.63,151.58,4.0]
[1641490360730,6.59108885,151.63,151.59,4.0]
[1641490360931,6.59108885,151.63,151.58,17.97122926]
[1641490361127,13.97122926,151.65,151.58,13.97122926]
[1641490361329,13.97122926,151.65,151.6,27.66479]
[1641490361730,20.56058087,151.67,151.6,45.63601926]
[1641490361928,20.56058087,151.67,151.6,41.63601926]
[1641490362129,13.97122926,151.67,151.61,4.0]
[1641490362529,13.97122926,151.67,151.6,41.63601926]
[1641490362729,20.55949556,151.7,151.65,4.0]
[1641490362934,20.55949556,151.7,151.63,13.97122926]
[1641490363835,6.5882663,151.7,151.64,13.97122926]
[1641490364538,20.55949556,151.7,151.63,13.97122926]
[1641490364737,26.31049556,151.7,151.63,13.97122926]
[1641490365337,13.97122926,151.69,151.62,4.0]
[1641490365536,13.97122926,151.69,151.61,20.93300968]
[1641490365938,6.58978583,151.66,151.61,20.93300968]
[1641490367439,6.58978583,151.66,151.59,13.97122926]
[1641490368239,6.58978583,151.66,151.6,13.97122926]
[1641490369241,6.58978583,151.66,151.59,13.97122926]
[1641490369842,6.58978583,151.66,151.6,13.97122926]
[1641490371449,6.58978583,151.66,151.61,13.97122926]
[1641490372546,20.56101509,151.66,151.6,27.66479]
[1641490373354,6.58978583,151.66,151.6,41.63601926]
[1641490375555,13.97122926,151.67,151.64,4.0]
[1641490375854,13.97122926,151.67,151.64,6.615]
[1641490376456,13.97122926,151.67,151.65,1.44674142]
[1641490376656,3.2089776,151.68,151.65,1.44674142]
[1641490377856,13.97122926,151.71,151.64,27.66479]
[1641490378259,13.97122926,151.71,151.64,31.66479]
[1641490378861,13.97122926,151.71,151.65,1.44674142]
[1641490379362,6.58891744,151.68,151.65,1.44674142]
[1641490380563,13.97122926,151.7,151.62,4.0]
[1641490380564,3.2089776,151.67,151.62,19.41797068]
[1641490380962,3.2089776,151.67,151.62,15.41797068]
[1641490381461,6.58804928,151.7,151.64,13.97122926]
[1641490382465,3.2089776,151.69,151.63,15.41797068]
[1641490383165,3.2089776,151.69,151.63,13.97122926]
[1641490384667,6.58956871,151.67,151.63,13.97122926]
[1641490384866,6.58956871,151.67,151.62,15.41797068]
[1641490385769,3.2089776,151.66,151.62,15.41797068]
[1641490386572,3.2089776,151.66,151.61,22.37979241]
[1641490388172,6.59087164,151.64,151.61,22.37979241]
[1641490388573,6.59087164,151.64,151.61,1.44674142]
[1641490388773,6.59217509,151.62,151.58,13.97122926]
[1641490388973,13.44517509,151.62,151.58,13.97122926]
[1641490389475,27.66479,151.59,151.58,13.97122926]
[1641490389875,27.66479,151.59,151.54,13.97122926]
[1641490390376,13.97122926,151.61,151.55,4.0]
[1641490390575,13.97122926,151.61,151.54,13.97122926]
[1641490390774,13.97122926,151.61,151.54,17.97122926]
[1641490390975,4.65790076,151.59,151.56,13.97122926]
[1641490391977,4.65790076,151.6,151.56,13.97122926]
[1641490395578,4.65790076,151.6,151.58,4.0]
[1641490395778,6.59217509,151.62,151.58,4.0]
[1641490395979,6.59217509,151.62,151.56,13.97122926]
[1641490396179,6.59217509,151.62,151.6,4.0]
[1641490396380,6.59217509,151.62,151.56,13.97122926]
[1641490396780,6.59217509,151.62,151.58,4.0]
[1641490396981,6.59217509,151.62,151.59,13.97122926]
[1641490397383,5.526,151.65,151.59,13.97122926]
[1641490397582,20.56123223,151.66,151.59,13.97122926]
[1641490398185,20.56123223,151.66,151.58,75.29272926]
[1641490398186,6.59000297,151.66,151.58,75.29272926]
[1641490398385,6.59000297,151.66,151.58,82.25461815]
[1641490398986,6.59000297,151.66,151.58,61.3215]
[1641490403899,6.59000297,151.66,151.59,4.0]
[1641490404101,6.59000297,151.66,151.58,61.3215]
[1641490404300,6.59000297,151.66,151.59,4.0]
[1641490404500,6.59000297,151.66,151.58,61.3215]
[1641490404702,6.59000297,151.66,151.59,20.91350087]
[1641490405602,6.59000297,151.66,151.59,24.91350087]
[1641490405902,6.59000297,151.66,151.59,20.91350087]
[1641490406103,6.59000297,151.66,151.62,4.0]
[1641490406904,6.59000297,151.66,151.61,4.0]
[1641490407507,6.59000297,151.66,151.6,13.97122926]
[1641490407906,6.59000297,151.66,151.61,27.66479]
[1641490408507,6.59000297,151.66,151.62,4.0]
[1641490410508,6.59000297,151.66,151.61,27.66479]
[1641490410910,4.99178396,151.66,151.62,4.0]
[1641490411111,41.63601926,151.7,151.62,4.0]
[1641490411813,41.63601926,151.7,151.61,27.66479]
[1641490412013,6.58956871,151.67,151.61,27.66479]
[1641490412815,6.58956871,151.67,151.63,4.0]
[1641490413015,13.97122926,151.69,151.66,4.0]
[1641490413215,13.97122926,151.69,151.63,6.608]
[1641490413818,6.58804928,151.7,151.67,4.0]
[1641490414516,13.97122926,151.71,151.67,4.0]
[1641490414917,18.21662781,151.72,151.67,4.0]
[1641490414918,20.55841061,151.72,151.67,4.0]
[1641490419024,13.97122926,151.69,151.67,4.0]
[1641490420325,13.97122926,151.7,151.67,4.0]
[1641490421927,13.97122926,151.71,151.65,4.0]
[1641490422127,13.97122926,151.71,151.7,4.0]
[1641490422329,48.87721814,151.74,151.7,35.66479]
[1641490422530,48.87721814,151.74,151.73,4.0]
[1641490422729,6.58609675,151.75,151.73,4.0]
[1641490422930,6.58609675,151.75,151.74,4.0]
[1641490423632,11.62855187,151.76,151.74,4.0]
[1641490424032,11.62855187,151.77,151.72,4.0]
[1641490425033,43.83324519,151.78,151.72,4.0]
[1641490425233,6.58457892,151.78,151.72,4.0]
[1641490426435,43.83324519,151.78,151.72,4.0]
[1641490426836,43.83324519,151.78,151.7,92.55899]
[1641490427035,48.54224519,151.78,151.7,92.55899]
[1641490427237,48.54224519,151.78,151.72,4.0]
[1641490427635,48.54224519,151.78,151.7,92.55899]
[1641490427837,6.58653055,151.74,151.69,4.0]
[1641490428037,13.44253055,151.74,151.65,64.3935]
[1641490428537,27.66479,151.73,151.65,64.3935]
[1641490429438,30.87388538,151.73,151.66,1.4468058]
[1641490429837,30.87388538,151.73,151.67,4.0]
[1641490430237,14.83764725,151.72,151.66,1.4468058]
[1641490430637,14.83764725,151.72,151.67,4.0]
[1641490430940,14.83764725,151.72,151.66,1.4468058]
[1641490431138,14.83764725,151.72,151.68,4.0]
[1641490431338,14.83764725,151.72,151.66,1.4468058]